fUSD/lending_fUSD_20260517
["ID","MTS","AMOUNT","RATE_DAILY","PERIOD"]
[422452367,1778963445000,-381.87,0.0002901,2]
[422452368,1778963445000,-2906.32,0.0002901,2]
[422452376,1778963445000,-2906.32,0.00029042,7]
[422452372,1778963445000,-1346.29,0.00029021,2]
[422452375,1778963445000,-381.87,0.00029042,7]
[422452373,1778963445000,-380.31,0.00029042,7]
[422452374,1778963445000,-3215.36,0.00029042,7]
[422452378,1778963445000,-391.84,0.00029047,7]
[422452377,1778963445000,-391.27,0.00029046,7]
[422452380,1778963445000,-1346.03,0.00029051,7]
[422452379,1778963445000,-1346.29,0.00029051,7]
[422452381,1778963445000,-380.31,0.00029074,30]
[422452319,1778963445000,-391.84,0.00028861,7]
[422452362,1778963445000,-215.03962261,0.00029,7]
[422452363,1778963445000,-215.03962261,0.00029,30]
[422452382,1778963445000,-3215.36,0.00029074,30]
[422452351,1778963445000,-1346.03,0.0002896,7]
[422452315,1778963445000,-3215.36,0.00028852,7]
[422452317,1778963445000,-2906.32,0.00028852,7]
[422452316,1778963445000,-381.87,0.00028852,7]
[422452325,1778963445000,-2906.32,0.00028883,30]
[422452336,1778963445000,-391.84,0.00028923,2]
[422452324,1778963445000,-381.87,0.00028883,30]
[422452327,1778963445000,-391.84,0.00028892,30]
[422452326,1778963445000,-391.27,0.00028891,30]
[422452361,1778963445000,-208.44072055,0.00029,30]
[422452329,1778963445000,-1346.29,0.000289,30]
[422452383,1778963445000,-381.87,0.00029074,30]
[422452330,1778963445000,-10611.0,0.00028904,2]
[422452333,1778963445000,-381.87,0.00028915,2]
[422452334,1778963445000,-2906.32,0.00028915,2]
[422452335,1778963445000,-391.27,0.00028922,2]
[422452332,1778963445000,-3215.36,0.00028915,2]
[422452345,1778963445000,-380.31,0.00028947,7]
[422452331,1778963445000,-380.31,0.00028915,2]
[422452343,1778963445000,-2000.0,0.00028933,2]
[422452341,1778963445000,-2000.0,0.00028933,2]
[422452346,1778963445000,-3215.36,0.00028947,7]
[422452344,1778963445000,-2000.0,0.00028933,2]
[422452347,1778963445000,-381.87,0.00028947,7]
[422452348,1778963445000,-2906.32,0.00028947,7]
[422452349,1778963445000,-391.27,0.00028953,7]
[422452338,1778963445000,-1346.29,0.0002893,2]
[422452340,1778963445000,-2000.0,0.00028933,2]
[422452337,1778963445000,-1346.03,0.00028929,2]
[422452339,1778963445000,-2000.0,0.00028933,2]
[422452342,1778963445000,-2000.0,0.00028933,2]
[422452422,1778963446000,-750.0,0.00029171,2]
[422452425,1778963446000,-1346.29,0.00029172,30]
[422452424,1778963446000,-278.0,0.00029171,2]
[422452426,1778963446000,-1346.03,0.00029172,30]
[422452421,1778963446000,-1365.0,0.00029171,2]
[422452419,1778963446000,-2000.0,0.00029171,2]
[422452423,1778963446000,-750.0,0.00029171,2]
[422452429,1778963446000,-391.84,0.00029201,2]
[422452428,1778963446000,-445.0,0.000292,14]
[422452418,1778963446000,-2000.0,0.00029171,2]
[422452427,1778963446000,-153.0226255,0.00029188,7]
[422452430,1778963446000,-380.31,0.00029201,2]
[422452438,1778963446000,-156.9733308,0.00029207,7]
[422452446,1778963446000,-3215.42,0.00029232,7]
[422452439,1778963446000,-177.24899996,0.00029207,7]
[422452441,1778963446000,-1346.26,0.00029232,7]
[422452442,1778963446000,-2562.83,0.00029232,7]
[422452431,1778963446000,-3215.36,0.00029201,2]
[422452434,1778963446000,-2906.32,0.00029201,2]
[422452432,1778963446000,-381.87,0.00029201,2]
[422452433,1778963446000,-391.27,0.00029201,2]
[422452435,1778963446000,-1346.29,0.00029202,2]
[422452436,1778963446000,-1346.03,0.00029202,2]
[422452437,1778963446000,-156.67907376,0.00029207,2]
[422452443,1778963446000,-392.01,0.00029232,7]
[422452445,1778963446000,-380.34,0.00029232,7]
[422452420,1778963446000,-2000.0,0.00029171,2]
[422452440,1778963446000,-1978.06,0.00029224,7]
[422452410,1778963446000,-3215.36,0.00029169,30]
[422452396,1778963446000,-391.84,0.00029109,2]
[422452413,1778963446000,-391.84,0.0002917,30]
[422452447,1778963446000,-381.96,0.00029232,7]
[422452388,1778963446000,-1346.03,0.00029081,30]
[422452385,1778963446000,-391.27,0.00029077,30]
[422452384,1778963446000,-2906.32,0.00029074,30]
[422452387,1778963446000,-1346.29,0.00029081,30]
[422452386,1778963446000,-391.84,0.00029078,30]
[422452389,1778963446000,-1054.16,0.000291,7]
[422452400,1778963446000,-3215.36,0.00029137,7]
[422452391,1778963446000,-3215.36,0.00029105,2]
[422452392,1778963446000,-381.87,0.00029105,2]
[422452394,1778963446000,-2906.32,0.00029105,2]
[422452390,1778963446000,-380.31,0.00029105,2]
[422452402,1778963446000,-381.87,0.00029137,7]
[422452408,1778963446000,-1346.29,0.00029142,7]
[422452397,1778963446000,-1346.03,0.00029111,2]
[422452395,1778963446000,-391.27,0.00029108,2]
[422452398,1778963446000,-1346.29,0.00029112,2]
[422452405,1778963446000,-391.27,0.00029139,7]
[422452415,1778963446000,-2000.0,0.00029171,2]
[422452407,1778963446000,-1346.03,0.00029141,7]
[422452417,1778963446000,-2000.0,0.00029171,2]
[422452416,1778963446000,-2000.0,0.00029171,2]
[422452404,1778963446000,-2906.32,0.00029137,7]
[422452406,1778963446000,-391.84,0.0002914,7]
[422452409,1778963446000,-380.31,0.00029169,30]
[422452412,1778963446000,-2906.32,0.00029169,30]
[422452414,1778963446000,-391.27,0.0002917,30]
[422452411,1778963446000,-381.87,0.00029169,30]
[422452399,1778963446000,-380.31,0.00029137,7]
[422452444,1778963446000,-1346.35,0.00029232,7]
[422452466,1778963446000,-20173.47702989,0.0003,2]
[422452449,1778963446000,-1346.2,0.00029232,7]
[422452480,1778963446000,-151.0,0.0003,7]
[422452482,1778963446000,-151.0,0.0003,7]
[422452488,1778963446000,-3094.73,0.0003,24]
[422452485,1778963446000,-345.924005,0.0003,7]
[422452486,1778963446000,-345.924005,0.0003,7]
[422452484,1778963446000,-345.924005,0.0003,7]
[422452489,1778963446000,-170.894,0.0003,24]
[422452487,1778963446000,-151.0,0.0003,7]
[422452483,1778963446000,-345.924005,0.0003,7]
[422452493,1778963446000,-200.0,0.0003,2]
[422452503,1778963446000,-1197.754717,0.0003,7]
[422452492,1778963446000,-151.0,0.0003,7]
[422452497,1778963446000,-170.144543,0.0003,7]
[422452490,1778963446000,-151.0,0.0003,7]
[422452496,1778963446000,-170.144543,0.0003,7]
[422452498,1778963446000,-170.144543,0.0003,7]
[422452500,1778963446000,-1197.754717,0.0003,7]
[422452499,1778963446000,-170.144543,0.0003,7]
[422452494,1778963446000,-200.0,0.0003,2]
[422452501,1778963446000,-151.0,0.0003,7]
[422452495,1778963446000,-215.03962261,0.0003,30]
[422452504,1778963446000,-1197.754717,0.0003,7]
[422452505,1778963446000,-200.0,0.0003,2]
[422452506,1778963446000,-328.132613,0.0003,7]
[422452509,1778963446000,-328.132613,0.0003,7]
[422452508,1778963446000,-328.132613,0.0003,7]
[422452507,1778963446000,-328.132613,0.0003,7]
[422452510,1778963446000,-2616.983208,0.0003,7]
[422452448,1778963446000,-391.36,0.00029232,7]
[422452491,1778963446000,-151.0,0.0003,7]
[422452502,1778963446000,-1197.754717,0.0003,7]
[422452479,1778963446000,-151.0,0.0003,7]
[422452481,1778963446000,-151.0,0.0003,7]
[422452456,1778963446000,-2681.69619604,0.00029527,2]
[422452454,1778963446000,-1270.0,0.00029527,2]
[422452453,1778963446000,-150.0,0.00029527,2]
[422452455,1778963446000,-1223.0,0.00029527,2]
[422452452,1778963446000,-945.6,0.000294,7]
[422452450,1778963446000,-2906.38,0.00029232,7]
[422452458,1778963446000,-757.43503382,0.00029527,2]
[422452457,1778963446000,-949.30380396,0.00029527,2]
[422452460,1778963446000,-603.58,0.00029527,7]
[422452459,1778963446000,-168.56496618,0.00029527,2]
[422452461,1778963446000,-150.0,0.00029534,2]
[422452465,1778963446000,-240.78340779,0.0002999,2]
[422452463,1778963446000,-575.0,0.00029807,4]
[422452451,1778963446000,-575.0,0.00029273,4]
[422452464,1778963446000,-80085.82010866,0.000299,2]
[422452478,1778963446000,-151.0,0.0003,7]
[422452462,1778963446000,-986.58715485,0.00029555,2]
[422452468,1778963446000,-151.0,0.0003,7]
[422452474,1778963446000,-151.0,0.0003,7]
[422452469,1778963446000,-151.0,0.0003,7]
[422452473,1778963446000,-151.0,0.0003,7]
[422452475,1778963446000,-151.0,0.0003,7]
[422452476,1778963446000,-151.0,0.0003,7]
[422452472,1778963446000,-151.0,0.0003,7]
[422452477,1778963446000,-151.0,0.0003,7]
[422452471,1778963446000,-151.0,0.0003,7]
[422452467,1778963446000,-83031.0845074,0.0003,2]
[422452470,1778963446000,-151.0,0.0003,7]
[422452535,1778963447000,-2072.655839,0.0003,7]
[422452532,1778963447000,-151.0,0.0003,7]
[422452531,1778963447000,-230.255192,0.0003,7]
[422452530,1778963447000,-230.255192,0.0003,7]
[422452537,1778963447000,-158.679922,0.0003,7]
[422452533,1778963447000,-2072.655839,0.0003,7]
[422452539,1778963447000,-2000.0,0.0003,2]
[422452542,1778963447000,-233.331286,0.0003,7]
[422452546,1778963447000,-233.331286,0.0003,7]
[422452538,1778963447000,-158.679922,0.0003,7]
[422452544,1778963447000,-233.331286,0.0003,7]
[422452540,1778963447000,-158.679922,0.0003,7]
[422452545,1778963447000,-199.157103,0.0003,7]
[422452534,1778963447000,-2072.655839,0.0003,7]
[422452541,1778963447000,-158.679922,0.0003,7]
[422452536,1778963447000,-2072.655839,0.0003,7]
[422452529,1778963447000,-230.255192,0.0003,7]
[422452513,1778963447000,-2616.983208,0.0003,7]
[422452528,1778963447000,-230.255192,0.0003,7]
[422452543,1778963447000,-199.157103,0.0003,7]
[422452515,1778963447000,-200.0,0.0003,2]
[422452512,1778963447000,-2616.983208,0.0003,7]
[422452514,1778963447000,-337.30066,0.0003,7]
[422452527,1778963447000,-588.44296,0.0003,7]
[422452516,1778963447000,-337.30066,0.0003,7]
[422452517,1778963447000,-337.30066,0.0003,7]
[422452519,1778963447000,-337.30066,0.0003,7]
[422452518,1778963447000,-570.176498,0.0003,7]
[422452524,1778963447000,-588.44296,0.0003,7]
[422452521,1778963447000,-208.119793,0.0003,7]
[422452523,1778963447000,-570.176498,0.0003,7]
[422452525,1778963447000,-588.44296,0.0003,7]
[422452520,1778963447000,-570.176498,0.0003,7]
[422452522,1778963447000,-570.176498,0.0003,7]
[422452526,1778963447000,-588.44296,0.0003,7]
[422452549,1778963447000,-200.0,0.0003008,15]
[422452511,1778963447000,-2616.983208,0.0003,7]
[422452550,1778963447000,-200.38022994,0.0003008,15]
[422452570,1778963447000,-159.0,0.00030133,30]
[422452569,1778963447000,-229.0,0.00030133,30]
[422452573,1778963447000,-849.27,0.00030137,2]
[422452576,1778963447000,-150.0,0.00030137,30]
[422452574,1778963447000,-200.0,0.00030137,2]
[422452572,1778963447000,-11952.45181751,0.00030135,2]
[422452575,1778963447000,-150.0,0.00030137,120]
[422452566,1778963447000,-235.0,0.00030131,30]
[422452581,1778963447000,-208.80519065,0.00030146,30]
[422452578,1778963447000,-243.0,0.00030146,30]
[422452583,1778963447000,-427.04825662,0.00019269,2]
[422452584,1778963447000,-707.04155553,0.0002,2]
[422452585,1778963447000,-144.95844447,0.0002,2]
[422452587,1778963447000,-1097.0,0.00024658,2]
[422452586,1778963447000,-151.0,0.0002,2]
[422452547,1778963447000,-199.157103,0.0003,7]
[422452577,1778963447000,-305.0,0.00030146,30]
[422452565,1778963447000,-822.0,0.00030131,30]
[422452579,1778963447000,-155.0,0.00030146,30]
[422452562,1778963447000,-151.0,0.0003013,7]
[422452567,1778963447000,-237.0,0.00030131,30]
[422452551,1778963447000,-321.0,0.000301,7]
[422452558,1778963447000,-308.219848,0.0003013,7]
[422452553,1778963447000,-151.0,0.0003013,7]
[422452556,1778963447000,-308.219848,0.0003013,7]
[422452559,1778963447000,-154.68493,0.0003013,7]
[422452548,1778963447000,-150.35093008,0.0003003,2]
[422452554,1778963447000,-151.0,0.0003013,7]
[422452552,1778963447000,-34665.53800272,0.0003013,7]
[422452557,1778963447000,-308.219848,0.0003013,7]
[422452555,1778963447000,-308.219848,0.0003013,7]
[422452561,1778963447000,-151.0,0.0003013,7]
[422452571,1778963447000,-641.0,0.00030133,30]
[422452560,1778963447000,-151.0,0.0003013,7]
[422452564,1778963447000,-200.0,0.0003013,2]
[422452563,1778963447000,-884.94274319,0.0003013,14]
[422452568,1778963447000,-978.0,0.00030131,30]
[422452629,1778963448000,-161.0,0.00030648,3]
[422452619,1778963448000,-241.62202629,0.00030547,7]
[422452609,1778963448000,-575.0,0.00030341,5]
[422452610,1778963448000,-200.0,0.00030431,2]
[422452616,1778963448000,-218.61285711,0.00030547,7]
[422452611,1778963448000,-723.9807223,0.00030447,2]
[422452612,1778963448000,-150.0,0.0003052,2]
[422452630,1778963448000,-200.0,0.00030736,2]
[422452608,1778963448000,-150.0,0.00030269,30]
[422452620,1778963448000,-240.91430472,0.00030547,7]
[422452624,1778963448000,-313.35814752,0.00030567,2]
[422452618,1778963448000,-166.8807737,0.00030547,7]
[422452627,1778963448000,-474.41509689,0.00030603,2]
[422452628,1778963448000,-29.58490311,0.00030603,2]
[422452623,1778963448000,-306.04525101,0.00030547,7]
[422452626,1778963448000,-354.49799993,0.00030567,7]
[422452622,1778963448000,-160.82834075,0.00030547,7]
[422452625,1778963448000,-313.9466616,0.00030567,7]
[422452631,1778963448000,-445.0,0.000308,14]
[422452606,1778963448000,-605.6,0.00030239,2]
[422452621,1778963448000,-172.9737958,0.00030547,7]
[422452614,1778963448000,-150.0,0.0003052,2]
[422452593,1778963448000,-1623.72111434,0.00027397,10]
[422452617,1778963448000,-216.42479659,0.00030547,7]
[422452588,1778963448000,-1097.0,0.00024658,2]
[422452590,1778963448000,-199.157103,0.00025,2]
[422452589,1778963448000,-151.0,0.00025,2]
[422452633,1778963448000,-575.0,0.00030875,6]
[422452591,1778963448000,-151.0,0.00025,2]
[422452592,1778963448000,-8762.68888566,0.00027397,10]
[422452594,1778963448000,-233.331286,0.0003,7]
[422452595,1778963448000,-151.0,0.0003,7]
[422452598,1778963448000,-273.19480935,0.00030146,30]
[422452615,1778963448000,-219.37058733,0.00030541,7]
[422452596,1778963448000,-199.157103,0.0003,7]
[422452599,1778963448000,-152.0,0.0003015,30]
[422452600,1778963448000,-268.70121932,0.00030201,2]
[422452597,1778963448000,-151.0,0.0003,7]
[422452605,1778963448000,-150.0,0.00030205,2]
[422452603,1778963448000,-320.83512344,0.00030201,2]
[422452604,1778963448000,-2613.73860918,0.00030201,2]
[422452602,1778963448000,-5444.91227843,0.00030201,2]
[422452607,1778963448000,-2809.1721,0.00030269,2]
[422452613,1778963448000,-150.0,0.0003052,2]
[422452601,1778963448000,-217.64099542,0.00030201,2]
[422452632,1778963448000,-1054.16,0.000308,7]
[422452643,1778963448000,-365.19217704,0.00031131,30]
[422452637,1778963448000,-200.0,0.00031096,2]
[422452662,1778963448000,-278.84192623,0.00031453,7]
[422452661,1778963448000,-432.84959319,0.00031453,7]
[422452667,1778963448000,-167.16870581,0.00031453,7]
[422452668,1778963448000,-345.9475916,0.00031453,7]
[422452665,1778963448000,-481.82860943,0.00031453,7]
[422452669,1778963448000,-321.65668151,0.00031453,7]
[422452634,1778963448000,-150.0,0.00031011,2]
[422452664,1778963448000,-483.24405258,0.00031453,7]
[422452666,1778963448000,-281.09383888,0.00031453,7]
[422452660,1778963448000,-437.22571422,0.00031453,7]
[422452670,1778963448000,-270.74342256,0.00031453,7]
[422452675,1778963448000,-531.74699989,0.00031474,7]
[422452672,1778963448000,-459.06787651,0.00031453,7]
[422452674,1778963448000,-470.9199924,0.00031474,7]
[422452673,1778963448000,-470.03722128,0.00031474,2]
[422452677,1778963448000,-1000.0,0.000315,7]
[422452678,1778963448000,-2335.33761237,0.00031507,30]
[422452676,1778963448000,-175.52700234,0.00031476,7]
[422452680,1778963448000,-627.49177147,0.00031507,30]
[422452679,1778963448000,-3543.0,0.00021616,2]
[422452671,1778963448000,-166.95755961,0.00031453,7]
[422452658,1778963448000,-247.03049164,0.00031447,7]
[422452663,1778963448000,-333.7615474,0.00031453,7]
[422452657,1778963448000,-169.80928594,0.00031447,7]
[422452635,1778963448000,-200.0,0.00031043,2]
[422452656,1778963448000,-575.0,0.00031409,6]
[422452638,1778963448000,-155.51466374,0.00031131,30]
[422452641,1778963448000,-235.0,0.00031131,30]
[422452640,1778963448000,-666.48533626,0.00031131,30]
[422452639,1778963448000,-297.854146,0.00025,2]
[422452649,1778963448000,-243.0,0.00031146,30]
[422452647,1778963448000,-641.0,0.00031133,30]
[422452642,1778963448000,-237.0,0.00031131,30]
[422452650,1778963448000,-155.0,0.00031146,30]
[422452636,1778963448000,-1978.06,0.00031068,7]
[422452644,1778963448000,-612.80782296,0.00031131,30]
[422452645,1778963448000,-229.0,0.00031133,30]
[422452651,1778963448000,-482.0,0.00031146,30]
[422452655,1778963448000,-200.0,0.00031353,2]
[422452648,1778963448000,-305.0,0.00031146,30]
[422452652,1778963448000,-151.0,0.00031147,7]
[422452654,1778963448000,-945.6,0.000312,7]
[422452659,1778963448000,-438.74117466,0.00031447,7]
[422452653,1778963448000,-152.0,0.0003115,30]
[422452646,1778963448000,-159.0,0.00031133,30]
[422452681,1778963449000,-500.0,0.00031577,120]
[422452684,1778963449000,-8.22230196,0.00032,120]
[422452683,1778963449000,-575.0,0.00031943,7]
[422452682,1778963449000,-150.0,0.00031716,2]
[422452687,1778963449000,-1952.50204367,0.00032,2]
[422452686,1778963449000,-186.56694993,0.00032,120]
[422452685,1778963449000,-153.24329666,0.00032,120]
[422452690,1778963459000,-841.75356024,0.00015107,2]
[422452688,1778963459000,-11976.43033639,0.00015107,2]
[422452689,1778963459000,-713.165178,0.00015107,2]
[422452691,1778963460000,-152.0,0.00013042,7]
[422452692,1778963460000,-3391.0,0.00015107,2]
[422452693,1778963558000,364.76,0.00024861,120]
[422452695,1778963701000,22.87532763,7.374e-05,2]
[422452694,1778963701000,146.18467237,7.374e-05,2]
[422452696,1778963701000,169.06,8.555e-05,2]
[422452697,1778963702000,169.06,9.736e-05,2]
[422452699,1778964511000,323.55,6.777e-05,2]
[422452701,1778964512000,323.55,7.462e-05,2]
[422452700,1778964512000,323.55,7.119e-05,2]
[422452704,1778964512000,323.55,8.49e-05,2]
[422452703,1778964512000,323.55,8.147e-05,2]
[422452702,1778964512000,323.55,7.805e-05,2]
[422452710,1778964513000,104.82042676,0.00010204,2]
[422452709,1778964513000,218.72957324,0.00010204,2]
[422452708,1778964513000,323.55,9.861e-05,2]
[422452707,1778964513000,323.55,9.518e-05,2]
[422452706,1778964513000,323.55,9.175e-05,2]
[422452705,1778964513000,323.55,8.833e-05,2]
[422452725,1778964631000,-169.74159497,0.00012009,2]
[422452723,1778964631000,-161.52349067,0.00011817,2]
[422452724,1778964631000,-323.55,0.00011917,2]
[422452733,1778964631000,-323.55,0.00012945,2]
[422452729,1778964631000,-323.55,0.00012602,2]
[422452734,1778964631000,-659.7231044,0.00013004,2]
[422452727,1778964631000,-323.55,0.0001226,2]
[422452726,1778964631000,-250.0,0.00012009,2]
[422452728,1778964631000,-200.0,0.00012508,2]
[422452722,1778964631000,-250.0,0.00011616,2]
[422452730,1778964631000,-797.53,0.00012893,2]
[422452721,1778964631000,-323.55,0.00011574,2]
[422452737,1778964631000,-150.0,0.00013099,2]
[422452720,1778964631000,-323.55,0.00011232,2]
[422452718,1778964631000,-239.67282396,0.00010889,2]
[422452719,1778964631000,-250.0,0.00011065,2]
[422452716,1778964631000,-323.55,0.00010546,2]
[422452717,1778964631000,-83.87717604,0.00010889,2]
[422452731,1778964631000,-80.54653678,0.00012893,2]
[422452735,1778964631000,-541.6965916,0.00013004,2]
[422452732,1778964631000,-70.44346322,0.00012893,2]
[422452738,1778964631000,-152.0,0.00013188,7]
[422452763,1778964631000,-531.19,0.00013829,2]
[422452765,1778964631000,-179627.36641532,0.0001383,2]
[422452758,1778964631000,-164.47,0.00013716,2]
[422452736,1778964631000,-152.0,0.0001307,7]
[422452751,1778964631000,-340.18,0.00013558,2]
[422452752,1778964631000,-2000.0,0.00013626,2]
[422452754,1778964631000,-170.86,0.00013686,2]
[422452756,1778964631000,-200.0,0.00013699,2]
[422452750,1778964631000,-500.0,0.00013528,2]
[422452749,1778964631000,-2233.59102351,0.0001347,2]
[422452760,1778964631000,-170.11824265,0.0001382,2]
[422452742,1778964631000,-215.96,0.00013376,2]
[422452743,1778964631000,-1200.0,0.00013468,2]
[422452745,1778964631000,-300.0,0.00013469,2]
[422452744,1778964631000,-159.0,0.00013469,2]
[422452748,1778964631000,-4805.23897649,0.0001347,2]
[422452747,1778964631000,-300.0,0.00013469,2]
[422452741,1778964631000,-158.71,0.00013349,2]
[422452739,1778964631000,-152.0,0.00013188,7]
[422452740,1778964631000,-323.55,0.00013288,2]
[422452746,1778964631000,-300.0,0.00013469,2]
[422452787,1778964637000,-500.0,0.00013829,2]
[422452793,1778964637000,-500.0,0.00013829,2]
[422452794,1778964637000,-2320372.63358468,0.0001383,2]
[422452795,1778964637000,-4715.14,0.00013838,2]
[422452785,1778964637000,-500.0,0.00013829,2]
[422452783,1778964637000,-500.0,0.00013829,2]
[422452778,1778964637000,-307.72437,0.00013829,2]
[422452782,1778964637000,-500.0,0.00013829,2]
[422452779,1778964637000,-500.0,0.00013829,2]
[422452781,1778964637000,-500.0,0.00013829,2]
[422452775,1778964637000,-300.76920389,0.00013829,2]
[422452777,1778964637000,-303.22118732,0.00013829,2]
[422452776,1778964637000,-500.0,0.00013829,2]
[422452789,1778964637000,-500.0,0.00013829,2]
[422452780,1778964637000,-500.0,0.00013829,2]
[422452788,1778964637000,-500.0,0.00013829,2]
[422452784,1778964637000,-500.0,0.00013829,2]
[422452790,1778964637000,-500.0,0.00013829,2]
[422452786,1778964637000,-487.52230663,0.00013829,2]
[422452807,1778964637000,-194.0,0.00014764,2]
[422452802,1778964637000,-700.0,0.000146,5]
[422452805,1778964637000,-1400.0,0.000147,5]
[422452808,1778964637000,-420.0,0.00014764,2]
[422452799,1778964637000,-164.47,0.00014282,2]
[422452800,1778964637000,-392.66924964,0.00014436,21]
[422452806,1778964637000,-150.0,0.00014738,2]
[422452801,1778964637000,-531.19,0.00014521,2]
[422452803,1778964637000,-392.66924964,0.00014684,21]
[422452797,1778964637000,-150.0,0.00014,2]
[422452798,1778964637000,-531.19,0.00014175,2]
[422452796,1778964637000,-250.0,0.00014,2]
[422452791,1778964637000,-500.0,0.00013829,2]
[422452804,1778964637000,-392.66924964,0.000147,21]
[422452792,1778964637000,-500.0,0.00013829,2]
[422452899,1778964638000,-200.531302,0.00016009,2]
[422452897,1778964638000,-300.0,0.00016,2]
[422452882,1778964638000,-164.47,0.00015414,2]
[422452884,1778964638000,-198.63741418,0.00015551,21]
[422452868,1778964638000,-150.0,0.0001512,2]
[422452864,1778964638000,-151.0,0.00015104,2]
[422452866,1778964638000,-151.0,0.00015104,2]
[422452875,1778964638000,-1229.72,0.000152,2]
[422452879,1778964638000,-2000.0,0.0001533,2]
[422452877,1778964638000,-531.19,0.00015212,2]
[422452886,1778964638000,-3600.0,0.000159,5]
[422452870,1778964638000,-215.03962261,0.00015151,2]
[422452892,1778964638000,-10000.0,0.00015968,2]
[422452908,1778964638000,-151.0,0.00016065,2]
[422452894,1778964638000,-164.47,0.0001598,2]
[422452890,1778964638000,-2080.17592889,0.00015959,2]
[422452903,1778964638000,-3602.47082071,0.00016009,2]
[422452895,1778964638000,-150.0,0.00015984,2]
[422452888,1778964638000,-524.40294489,0.00015959,2]
[422452906,1778964638000,-170.11824265,0.00016058,2]
[422452862,1778964638000,-151.0,0.00015104,2]
[422452910,1778964638000,-151.0,0.00016065,2]
[422452912,1778964638000,-300.0,0.00016067,2]
[422452914,1778964638000,-300.0,0.00016067,2]
[422452922,1778964638000,-517.2,0.00016438,2]
[422452916,1778964638000,-300.0,0.00016109,2]
[422452920,1778964638000,-671.0,0.00016296,2]
[422452901,1778964638000,-871.24620306,0.00016009,2]
[422452860,1778964638000,-151.0,0.00015104,2]
[422452841,1778964638000,-500.0,0.00014919,2]
[422452871,1778964638000,-160.0,0.00015154,2]
[422452809,1778964638000,-2100.0,0.000148,5]
[422452810,1778964638000,-1680.0,0.00014815,2]
[422452814,1778964638000,-337.65738966,0.00014919,2]
[422452812,1778964638000,-531.19,0.00014866,2]
[422452813,1778964638000,-2900.0,0.000149,5]
[422452811,1778964638000,-164.47,0.00014848,2]
[422452815,1778964638000,-500.0,0.00014919,2]
[422452818,1778964638000,-457.92942394,0.00014919,2]
[422452828,1778964638000,-500.0,0.00014919,2]
[422452816,1778964638000,-500.0,0.00014919,2]
[422452820,1778964638000,-500.0,0.00014919,2]
[422452822,1778964638000,-633.25989091,0.00014919,2]
[422452824,1778964638000,-500.0,0.00014919,2]
[422452826,1778964638000,-500.0,0.00014919,2]
[422452830,1778964638000,-500.0,0.00014919,2]
[422452843,1778964638000,-500.0,0.00014919,2]
[422452832,1778964638000,-500.0,0.00014919,2]
[422452918,1778964638000,-2774.21486537,0.0001611,2]
[422452844,1778964638000,-1500000.0,0.0001492,2]
[422452852,1778964638000,-402.79892166,0.0001502,2]
[422452846,1778964638000,-217.64099542,0.0001492,2]
[422452850,1778964638000,-704.70511065,0.0001502,2]
[422452855,1778964638000,-2774.21486546,0.0001502,2]
[422452839,1778964638000,-500.0,0.00014919,2]